Cogmind - Beta 15 @@@ ROGUE MODE // 2025.08.23 @ 14:59:19 Player: shockman27 Result: Destroyed by O7-RO7(R) with Subdweller Machine Gun Performance ------------- Evolutions (0) 0 Regions Visited (3) 600 Robots Destroyed (30) 150 Value Destroyed (648) 648 Prototype IDs (1) 20 Alien Tech Used (0) 0 Bonus (0) 0 TOTAL SCORE: 1418 Bonus ------- None Cogmind --------- Core Integrity 0/250 Matter 259/300 Energy 17/100 System Corruption 11% Temperature Cool (0) Movement Core (750) Ox14 Location -10/Subcaves Parts ------- > --- POWER (1) -------- (None) > --- PROPULSION (2) --- (None) > --- UTILITY (2) ------ High-capacity Storage Unit Seismic Detector > --- WEAPON (2) ------- Light Cannon > --- INVENTORY (20) --- Wheel Improved Heat Sink Structural Scanner Sensor Array Faulty Experimental Sensor Array Improved EM Shotgun Small Laser Salvaging Laser Salvaging Laser Particle Gun Light Assault Rifle Mining Laser Ripper Peak State ------------ > --- POWER ------------ Ion Engine > --- PROPULSION ------- Light Treads Wheel > --- UTILITY ---------- High-capacity Storage Unit Seismic Detector > --- WEAPON ----------- Beam Cannon Ripper > --- INVENTORY -------- Light Ion Engine Light Treads Light Treads Light Treads Wheel Improved Heat Sink Structural Scanner Sensor Array Experimental Sensor Array Improved EM Shotgun Small Laser Salvaging Laser Salvaging Laser Salvaging Laser Salvaging Laser Particle Gun Light Assault Rifle Light Cannon Mining Laser [Rating: 13] Favorites ----------- Power Ion Engine Engine Ion Engine Propulsion Light Treads Treads Light Treads Wheel Compact Wheel Utility Seismic Detector Device Seismic Detector Storage High-capacity Storage Unit Weapon Beam Cannon Energy Gun Medium Laser Energy Cannon Beam Cannon Ballistic Gun Light Assault Rifle Ballistic Cannon Light Cannon Launcher Rocket Launcher Special Weapon Mining Laser Slashing Weapon Ripper Build | -11 -10 -10 -10 ------- Run | Yrd Mat Min Sub Slots Evolved . | . . . . Power . | . . . . Propulsion . | . . . . Utility . | . . . . Weapon . | . . . . Parts Attached 30 | 7 13 8 2 Power 6 | 1 3 1 1 Engine 6 | 1 3 1 1 Core . | . . . . Reactor . | . . . . Propulsion 7 | 2 3 2 . Treads 4 | 2 1 1 . Leg . | . . . . Wheel 3 | . 2 1 . Hover . | . . . . Flight . | . . . . Utility 5 | 2 2 1 . Device 3 | 1 1 1 . Storage 2 | 1 1 . . Processor . | . . . . Hackware . | . . . . Protection . | . . . . Artifact . | . . . . Weapon 12 | 2 5 4 1 Energy Gun 5 | . 4 . 1 Energy Cannon 1 | . . 1 . Ballistic Gun 2 | 2 . . . Ballistic Cannon 1 | . . 1 . Launcher 1 | . . 1 . Special Weapon 1 | . 1 . . Impact Weapon . | . . . . Slashing Weapon 1 | . . 1 . Piercing Weapon . | . . . . Special Melee Weapon . | . . . . Unidentified Prototypes 1 | . 1 . . Parts Lost 15 | . . 6 9 Power 3 | . . 1 2 Propulsion 7 | . . 2 5 Utility 1 | . . 1 . Weapon 4 | . . 2 2 Highest Loss Streak 9 | . . 3 9 To Critical Strikes . | . . . . Average Backups 14 | 3 11 17 18 Power . | . 1 . . Propulsion 3 | 1 3 3 3 Utility 2 | . 1 3 4 Weapon 7 | 1 5 9 9 Tool/Special . | . . . . Unused Backups 10 | . 1 1 8 Power 1 | . 1 . . Propulsion 1 | . . . 1 Utility 5 | . . 1 4 Weapon 3 | . . . 3 Tool/Special . | . . . . Average Slot Usage (%) 98 | . 99 98 88 Engine 13 | . 13 13 9 Treads 16 | . 17 15 14 Wheel 11 | . 10 12 11 Device 13 | . 14 13 14 Storage 14 | . 14 14 14 Energy Gun 10 | . 14 6 3 Energy Cannon 6 | . . 12 12 Ballistic Gun 5 | . 10 . . Special Weapon 1 | . 3 . . Slashing Weapon 2 | . . 5 7 Peak Build Rating 13 | 7 10 13 13 Average Rating 9 | 5 8 10 10 On Entrance 7 | . 7 9 13 Naked Turns . | . . . . Heaviest Build 52 | 12 51 52 52 Greatest Support 40 | 40 40 40 10 Greatest Overweight (x) 5 | . 5 5 5 Average Overweight (x) 3 | . 2 4 4 Largest Inventory Capacity 20 | 8 20 20 20 Average Capacity 18 | 7 18 20 20 Most Carried 19 | 5 18 19 19 Average Carried 14 | 3 11 17 18 Final Capacity 20 | 8 20 20 20 Final Carried 19 | 5 18 19 13 Class Distribution -------------------- 100% | Mutant Dominant Class ---------------- Mutant | -10/Materials Mutant | -10/Mines Mutant | -10/Subcaves Resources | -11 -10 -10 -10 ----------- Run | Yrd Mat Min Sub Matter Collected 933 | 202 389 342 . Remotely . | . . . . Salvage Created 986 | 16 579 391 . Parts 62 | 5 31 26 . Haulers Intercepted 2 | . 2 . . Recyclers Shooed 3 | 1 2 . . Parts Field Recycled . | . . . . Retrieved Matter . | . . . . Parts Self-Destructed 8 | . . . 8 Prevented . | . . . . Kills | -11 -10 -10 -10 ------- Run | Yrd Mat Min Sub Combat Hostiles Destroyed 34 | . 7 27 . Melee 2 | . . 2 . Guns 10 | . 7 3 . Cannons 3 | . . 3 . AOE 19 | . . 19 . Classes Destroyed 10 | 1 5 4 . Worker 2 | . . 2 . Builder 1 | . . 1 . Tunneler 3 | 1 . 2 . Hauler 2 | . 2 . . Recycler 4 | . 3 1 . Operator 1 | . 1 . . Swarmer 9 | . 3 6 . Grunt 6 | . 4 2 . Demolisher 2 | . . 2 . Assembled 17 | . . 17 . Best Kill Streak 11 | 1 5 11 . Combat Bots Only 11 | . 3 11 . Max Kills in Single Turn 5 | 1 1 5 . Gunslinging . | . . . . Exploded 4 | . . 4 . Melee 1 | . . 1 . Uniques/NPCs Destroyed . | . . . . Combat | -11 -10 -10 -10 -------- Run | Yrd Mat Min Sub Hostile Shots Fired 129 | . 35 54 40 Missed 42 | . 11 19 12 Hits 87 | . 24 35 28 Melee 8 | . . 8 . Projectile 79 | . 24 27 28 AOE 3 | . . 3 . Critical Strikes 2 | . 1 . 1 Damage Taken 1759 | . 358 720 681 Core 262 | . 56 84 122 Absorbed by Shields . | . . . . Core Remaining (%) 100 | 100 . . . Volleys Fired 108 | 3 42 48 15 Largest 2 | 2 2 2 2 Hottest 110 | 40 100 110 90 Shots Fired 172 | 6 81 66 19 Gun 113 | 6 78 24 5 Cannon 38 | . . 24 14 Launcher 18 | . . 18 . Special 3 | . 3 . . Kinetic 58 | 6 49 1 2 Thermal 83 | . 19 47 17 Explosive 18 | . . 18 . Electromagnetic 13 | . 13 . . Robot Hit Streak 9 | 3 9 6 7 Robot Miss Streak 5 | 2 3 5 1 Penetration Max . | . . . . Secondary Targets 2 | . 2 . . Max Gunslinging Chain 1 | . 1 . . Shots Hit Robots 117 | 3 54 43 17 Core Hits 73 | 2 23 47 1 Critical Kills . | . . . . Critical Parts Destroyed . | . . . . Critical Strikes 3 | . . 3 . Burn 3 | . . 3 . Melee Attacks 14 | . . 14 . Impact . | . . . . Slashing 14 | . . 14 . Piercing . | . . . . Sneak Attacks 3 | . . 3 . Combat Hostiles . | . . . . Follow-up Attacks . | . . . . Damage Inflicted 3194 | 44 750 2132 268 Guns 889 | 44 647 160 38 Cannons 439 | . . 209 230 Explosions 1378 | . 103 1275 . Melee 488 | . . 488 . Ramming . | . . . . Kinetic 435 | 44 353 . 38 Thermal 1081 | . 193 658 230 Explosive 986 | . . 986 . Electromagnetic 204 | . 204 . . Impact . | . . . . Slashing 488 | . . 488 . Piercing . | . . . . Highest Corruption 11 | . . 11 11 Average Corruption 10 | . . 10 11 Corruption Purged . | . . . . Corruption Blocked . | . . . . Effects 39 | . . 32 7 Message Errors 15 | . . 13 2 Matter Fused 7 | . . 6 1 Heat Flow Errors 3 | . . 2 1 Energy Discharges 4 | . . 3 1 Parts Rejected 2 | . . 1 1 Data Loss (minor) 3 | . . 3 . Data Loss (major) 2 | . . 2 . Misfires 2 | . . 2 . Weapon Failures 1 | . . . 1 Overload Shots . | . . . . Overflow Damage 116 | . 15 101 . Projectiles . | . . . . Explosions 37 | . 15 22 . Melee 79 | . . 79 . Knockbacks . | . . . . Impact . | . . . . Kinetic . | . . . . Secondary . | . . . . Self-Inflicted Damage 149 | . 68 81 . Shots 6 | . 2 4 . Rammed . | . . . . Targets Rammed . | . . . . Kicked . | . . . . Crushed . | . . . . Highest Temperature 240 | . 141 240 207 Average Temperature 56 | . 45 63 51 Received Heat Transfer 328 | . 114 88 126 Siege Activations . | . . . . Martial Activations . | . . . . Shielding Activations . | . . . . Robots Disrupted . | . . . . Combat Hostiles . | . . . . Robots Corrupted . | . . . . Combat Hostiles . | . . . . Parts Fried . | . . . . Impact Corruptions . | . . . . Robots Melted . | . . . . Combat Hostiles . | . . . . Parts Melted 4 | . 3 1 . Heat Transferred 2404 | . 350 1547 507 Parts Sabotaged . | . . . . Parts Stolen . | . . . . Parts Stripped . | . . . . Power Chain Reactions 2 | . 2 . . Alert | -11 -10 -10 -10 ------- Run | Yrd Mat Min Sub Maximum Alert Level 1 | . . 1 . Low Security (%) 86 | 100 100 70 . Level 1 13 | . . 29 . Level 2 . | . . . . Level 3 . | . . . . Level 4 . | . . . . Level 5 . | . . . . High Security . | . . . . Max Security . | . . . . Peak Influence 374 | 5 77 374 . Initial 18 | . . 18 . Average 75 | . 11 146 . Influence Increases 953 | 5 320 628 . Destroy 0b10 Robot/C 340 | . 140 200 . Destroy 0b10 Robot/NC 65 | 5 30 30 . Destroy Leader 74 | . 34 40 . Allied During Kill 2 | . . 2 . Successful Hack 32 | . 32 . . Select Force Hacks 60 | . 60 . . Disable Machine 225 | . 15 210 . Destroy Structure 140 | . 9 131 . Lose Combat Pursuer 15 | . . 15 . Influence Decreases 953 | 5 271 653 24 Entered New Map 44 | . . 31 13 Time Decay 809 | 5 271 522 11 Lost Part 60 | . . 60 . Lost Ally 40 | . . 40 . Squads Dispatched 3 | . 3 . . Investigation 2 | . 2 . . Extermination . | . . . . Reinforcement 1 | . 1 . . Assault . | . . . . Garrison . | . . . . Intercept . | . . . . Searches Triggered . | . . . . Construction Impeded . | . . . . Haulers Reinforced . | . . . . Active Scanning Responses . | . . . . Cargo Convoy Interrupts . | . . . . Stealth | -11 -10 -10 -10 --------- Run | Yrd Mat Min Sub Distress Signals 1 | . 1 . . Communications Jammed . | . . . . Distress Signals . | . . . . Times Spotted 40 | . 10 28 2 Peak Tracking Total 6 | . 4 6 2 Tactical Retreats 1 | . . 1 . Traps | -11 -10 -10 -10 ------- Run | Yrd Mat Min Sub Traps Triggered 2 | . 2 . . Indirectly . | . . . . Trap Hack Attempts . | . . . . Triggered . | . . . . Disarmed . | . . . . Reprogrammed . | . . . . Reused . | . . . . Traps Extracted . | . . . . Installed . | . . . . Triggered . | . . . . Machines | -11 -10 -10 -10 ---------- Run | Yrd Mat Min Sub Machines Disabled 15 | . 1 14 . Max in Single Turn 13 | . 1 13 . Machines Repaired . | . . . . Machines Dismantled . | . . . . Machines Sabotaged . | . . . . Overloaded Fab Kills . | . . . . Hacking | -11 -10 -10 -10 --------- Run | Yrd Mat Min Sub Machines Accessed 8 | . 8 . . Terminals 6 | . 6 . . Fabricators . | . . . . Repair Stations . | . . . . Recycling Units 2 | . 2 . . Scanalyzers . | . . . . Garrison Access . | . . . . Total Hacks 17 | . 17 . . Successful 10 | . 10 . . Failed 7 | . 7 . . Catastrophic 2 | . 2 . . Database Lockouts . | . . . . Manual 14 | . 14 . . Terminals 15 | . 15 . . Fabricators . | . . . . Repair Stations . | . . . . Recycling Units 2 | . 2 . . Scanalyzers . | . . . . Garrison Access . | . . . . Terminal Hacks 6 | . 6 . . Robot Analysis 4 | . 4 . . Alert Level 1 | . 1 . . Hauler Manifests 1 | . 1 . . Fabricator Hacks . | . . . . Repair Station Hacks . | . . . . Recycling Unit Hacks . | . . . . Scanalyzer . | . . . . Garrison Access Hacks . | . . . . Unauthorized Hacks 4 | . 4 . . Terminals 2 | . 2 . . Botnet 2 | . 2 . . Fabricators . | . . . . Repair Stations . | . . . . Recycling Units 2 | . 2 . . Tunnel 2 | . 2 . . Scanalyzers . | . . . . Garrison Access . | . . . . Data Cores Recovered . | . . . . Used . | . . . . Hacking Detections 6 | . 6 . . Full Trace Events . | . . . . Feedback Events . | . . . . Feedback Blocked . | . . . . Robot Schematics Acquired . | . . . . Robots Built . | . . . . Authchips . | . . . . Time . | . . . . Total Robot Build Rating . | . . . . Part Schematics Acquired . | . . . . Parts Built . | . . . . Authchips . | . . . . Time . | . . . . Total Part Build Rating . | . . . . Parts Repaired . | . . . . Time . | . . . . Parts Recycled . | . . . . Recycled Matter . | . . . . Retrieved Matter . | . . . . Retrieved Components . | . . . . Parts Scanalyzed . | . . . . Part Schematics Acquired . | . . . . Parts Damaged . | . . . . Bothacking | -11 -10 -10 -10 ------------ Run | Yrd Mat Min Sub Used RIF Installer . | . . . . Robots Hacked . | . . . . Non-combat . | . . . . Combat . | . . . . Robot Hacks Applied . | . . . . Relay Couplers Released . | . . . . Fabnet Peak Effective % . | . . . . Robots Rewired . | . . . . Allies Hacked . | . . . . Hacks Repelled . | . . . . Allies | -11 -10 -10 -10 -------- Run | Yrd Mat Min Sub Total Allies 2 | . . 2 . Largest Group 2 | . . 2 . Highest-Rated Group 46 | . . 46 . Highest-Rated Ally 31 | . . 31 . Total Orders . | . . . . Ally Attacks 9 | . . 9 . Total Damage 166 | . . 166 . Kills 3 | . . 3 . Allies Corrupted . | . . . . Allies Melted . | . . . . Intel | -11 -10 -10 -10 ------- Run | Yrd Mat Min Sub Active Infowar (turns) 3068 | 43 1505 1401 119 Seismic 3068 | 43 1505 1401 119 Robot Analysis Total 4 | . 4 . . Derelict Logs Recovered 1 | . . 1 . Drone Launches . | . . . . Drone Recoveries . | . . . . Exploration | -11 -10 -10 -10 ------------- Run | Yrd Mat Min Sub Turns Passed 3196 | 114 1505 1458 119 Spaces Moved 1814 | 57 886 823 48 Core 3 | 3 . . . Treads 243 | 54 143 46 . Legs . | . . . . Wheels 1568 | . 743 777 48 Hover . | . . . . Flight . | . . . . Fastest Speed 50 | 50 130 140 140 Average Speed 151 | 154 147 155 150 Slowest Speed 240 | 160 240 240 155 Overloaded Moves . | . . . . Propulsion Burnouts . | . . . . Robots Hopped . | . . . . Potential Cave-ins . | . . . . Cave-ins Triggered . | . . . . Exploration Rate (%) 51 | 5 98 99 5 Regions Visited 3 Branch Regions 2 Pre-discovered Areas 4 | . 2 2 . Known Exits Taken . | . . . . Unknown Exits Taken 3 | 1 1 1 . Scrap Searched 1 | . . 1 . Spaces Dug 31 | . 3 28 . Terrain Destroyed 191 | . 7 184 . Melee 1 | . . 1 . Projectile 3 | . 3 . . AOE 187 | . 4 183 . Terrain Rammed . | . . . . Walls Destroyed . | . . . . Machines Disabled . | . . . . Actions | -11 -10 -10 -10 --------- Run | Yrd Mat Min Sub Total 2062 | 74 999 913 76 Wait 47 | 3 30 8 6 Move 1811 | 56 885 822 48 Hop . | . . . . Pick Up 26 | 5 13 8 . Fast Attach 11 | 7 3 1 . Attach 14 | . 2 6 6 Detach 3 | . 3 . . Swap 21 | . 15 5 1 Drop 7 | . 6 1 . Fire 108 | 3 42 48 15 Melee 14 | . . 14 . Ram . | . . . . Kick . | . . . . Crush . | . . . . Escape Stasis . | . . . . Rewire . | . . . . Trap . | . . . . Miscellaneous . | . . . . Route ------- -11/Scrapyard -10/Materials (discovered 6 exits: [*Mat x3] / [*Min x2] / [*Sub]) -10/Mines (discovered 3 exits: [*Mat x2] / [*Sub]) -10/Subcaves History --------- Turn | Location | Event 18 | -11/Scrapyard | Discovered new exit (range 15) 115 | -11/Scrapyard | Entered Materials 116 | -10/Materials | Met a group of wandering Federalists 185 | -10/Materials | Discovered new exit (range 16) 227 | -10/Materials | Discovered new exit (range 11) 302 | -10/Materials | Lost 4 allies 307 | -10/Materials | Build established: Mutant 763 | -10/Materials | Discovered new exit (range 16) 940 | -10/Materials | Discovered new exit (range 9) 1056 | -10/Materials | Discovered new exit (range 11) 1393 | -10/Materials | Discovered new exit (range 15) 1620 | -10/Materials | Entered Mines 1687 | -10/Mines | Learned location of Storage (-9) 1715 | -10/Mines | Discovered new exit (range 16) 1808 | -10/Mines | Discovered new exit (range 8) 1830 | -10/Mines | Received a Rocket Launcher from a helpful Derelict 1854 | -10/Mines | Learned location of Zion (-6) 2034 | -10/Mines | Assembled infested the area 2039 | -10/Mines | Assisted by a Guerilla fighting off Assembled 2212 | -10/Mines | Destroyed 11 combat bots 2307 | -10/Mines | System corruption reached 10% 2337 | -10/Mines | Lost 3 parts (1n2w) 2367 | -10/Mines | A weapon hastily lodged in a ceiling crevice suddenly fell to the ground 2521 | -10/Mines | Discovered new exit (range 10) 2627 | -10/Mines | Core integrity fell below 50% 2864 | -10/Mines | Found a damaged Exp. Sensor Array with a note attached 2867 | -10/Mines | Found Prototype Device 3078 | -10/Mines | Entered Subcaves 3193 | -10/Subcaves | Core integrity fell below 20% 3197 | -10/Subcaves | Destroyed by O7-RO7(R) with Subdweller Machine Gun Last Messages --------------- 03061_ Y %|OV/G|W&5S9H 4JC 3R8V%MLLT7XOF LOCATION=UNKNOWN AMBIENT_HEAT=-10 GOAL=ESCAPE 03081_ System corrupted: Heat flow error (+247). 03096_ 4TAFTBP TROOD#UZZAZ,#I EYIL 03113_ System corrupted: Energy discharge (-55). 03136_ MHRAMPA ,RBOYDEY< TU 03157_ System corrupted: Beam Cannon failed to cycle. 03159_ Ion Engine destroyed. 03163_ Lgt. Treads destroyed. 03165_ Lgt. Ion Engine destroyed. 03166_ System corrupted: Matter fused (-8). 03167_ Salvaging Laser destroyed. 03174_ Wheel destroyed. 03175_ Lgt. Treads destroyed. 03183_ Beam Cannon destroyed. 03187_ System corrupted: Salvaging Laser rejected. 03190_ Lgt. Treads destroyed. 03195_ Destroyed Scrap Shield. Map ----- +----------------------------------------------------+ | ?????????????????????????????????????????????????? | | ?????????????????????????????????????????????????? | | ?????????????????????????????????????????????????? | | ?????????????????????????????????????????????????? | | ?????????????????????????????????????????????????? | | ?????????????????????????????????????????????????? | | ?????????????????????????????????????????????????? | | ?????????????????????????????????????????????????? | | ?????????????????????????????????????????????????? | | ?????????????????????????????????????????????????? | | ?????????????????????????????????????????????????? | | ?????????????????????????????????????????????????? | | ?????????????????????????????????????????????????? | | ?????????????????????????????????????????????????? | | ?????????????????????????????????????????????????? | | ?????????????????????????????????????????????????? | | ?????????????????????????????????????????????????? | | ?????????????????????????????????????????????????? | | ?????????????????????????????????????????????????? | | ???????????????????????#####?????????????????????? | | ???????????????????##?? #?????????????????????? | | ??????????????????## ?? #?????????????????????? | | ?????????????????## #?# ####??????????????????? | | ????????????????## ## ;;#??????????????????? | | ????????????????# R ##????????????? ##??? | | ???????????????????#% R @ ##??????????? ##?? | | ???????????????????### ## ##??????????? ##? | | ????????????????????????# #??????????? #? | | ????????????????????????# #??????????? #? | | ????????????????????????## #??????????? ?? | | ?????????????????????????#### #???????????# #?? | | ???????????????????????????# ##??????????## #?? | | ???????????????????????????## ##????????## ##? | | ????????????????????????????# ##??????## ## | | ????????????????????????????# #??????# # | | ????????????????????????????### #?????## #? | | ?????????????????????????????# ####?## #?? | | ?????????????????????????????## ### ### | | ??????????????????????????????# ## | | ?????????????????????????????# ## #### | | ?????????????????????????????# #######?## | | ?????????????????????????????## ?####?## ## | | ??????????????????????????????## ## ### #### | | ???????????????????????????????# ### #??## | | ???????????????????????????????####?## #???# | | ?????????????????????????????????????#########???? | | ?????????????????????????????????????????????????? | | ?????????????????????????????????????????????????? | | ?????????????????????????????????????????????????? | | ?????????????????????????????????????????????????? | +----------------------------------------------------+ Best States ------------- Heat Dissipation 25 Energy Generation 10 Energy Capacity 250 Matter Stores 300 Matter Capacity 300 Sight Range 16 Terrain Scan Density 10 Evasion (%) 40 Recoil Reduction 2 Item Schematics ----------------- None Robot Schematics ------------------ None Fabricated ------------ Nothing Repaired ---------- Nothing Alien Tech Used ----------------- None Achievements -------------- Exterminator It Was An Accident, I Swear Challenges ------------ None Game ------ Seed DisruptorDrainedDetector Manual? 0 Play Time 00:22:39 Cumulative 149.6 hours Start 2025.08.23 @ 00:21:08 End 2025.08.23 @ 14:59:19 Sessions 7 Manual Loads 0 Difficulty Rogue Special Mode None Game No. 84 Rogue 80 Adventurer 4 Explorer 0 Win Type - Total 3 Types 2/0/0/1/0/0/0/0/0/0 Lore% 65 Gallery% 57 Achievement% 49 Wizard Run 0 Options --------- Layout 0 ASCII 0 Keyboard 1 Movement Vi Keybinds 0 Fullscreen 1 Font 24/Smallcaps Map View 76x50 Zoom Use 0% Tactical HUD 1 Map Filters NONE Filters NONE Steam 1 RUN: 2c3c2a4d-d42d-4068-9d72-29682826e2ae